bitfinex-derivatives/quotes_ETHF0:USTF0_20241005
["timestamp","ask_amount","ask_price","bid_price","bid_amount"]
[1728168623971,0.3921,2417.5,2417.1,0.33094]
[1728168624175,1.91301,2417.5,2417.2,0.74853]
[1728168624479,1.91301,2417.5,2417.3,0.4072]
[1728168624683,1.91301,2417.5,2417.3,0.8003]
[1728168626175,0.33091,2417.4,2417.3,0.8003]
[1728168626686,1.52091,2417.4,2417.3,0.8003]
[1728168634085,0.192,2418.1,2417.3,15.89153892]
[1728168634284,2.32512,2418.1,2417.8,0.33085]
[1728168634586,1.9943,2418.1,2417.9,0.8039]
[1728168634888,0.33083,2418.0,2417.9,0.8039]
[1728168637593,2.32513,2418.1,2417.9,0.8039]
[1728168638286,0.33083,2418.0,2417.9,0.8039]
[1728168639790,2.32512,2418.1,2417.9,0.8039]
[1728168640589,0.33083,2418.0,2417.9,0.8039]
[1728168641688,4.0348,2418.3,2417.9,0.8039]
[1728168641885,1.52082,2418.1,2417.9,0.8039]
[1728168644101,0.33083,2418.0,2417.9,0.8039]
[1728168652904,1.52083,2418.0,2417.9,0.8039]
[1728168655709,0.33084,2417.9,2417.8,3.2078]
[1728168656005,0.74704,2417.9,2417.8,3.2078]
[1728168657499,0.4162,2417.9,2417.8,3.2078]
[1728168657698,0.4162,2417.9,2417.7,0.3924]
[1728168660006,0.74705,2417.9,2417.7,0.3924]
[1728168660707,1.19,2417.8,2417.7,0.3924]
[1728168665809,1.52086,2417.8,2417.7,0.3924]
[1728168666012,1.19,2417.8,2417.7,0.3924]
[1728168669110,0.4162,2417.9,2417.7,0.3924]
[1728168669317,0.4162,2417.9,2417.7,1.91326]
[1728168669607,0.33083,2418.0,2417.7,1.91326]
[1728168670213,0.33084,2417.9,2417.7,1.91326]
[1728168672114,0.33086,2417.8,2417.7,0.3924]
[1728168672310,0.72266,2417.8,2417.7,0.3924]
[1728168672715,1.13706,2417.8,2417.7,0.3924]
[1728168673223,0.8062,2417.8,2417.7,0.3924]
[1728168674526,1.13706,2417.8,2417.7,0.3924]
[1728168675023,0.8062,2417.8,2417.7,0.3924]
[1728168675225,0.8062,2417.8,2417.7,0.72327]
[1728168675426,0.8062,2417.8,2417.7,1.25337248]
[1728168677725,1.176,2418.3,2417.7,1.25337248]
[1728168677726,4.33,2418.8,2417.7,2.11250248]
[1728168677936,0.8154,2418.5,2418.3,0.33078]
[1728168678223,1.14617,2418.5,2418.4,0.8145]
[1728168678527,0.3987,2418.5,2418.4,0.8145]
[1728168678726,0.72946,2418.5,2418.4,0.8145]
[1728168679227,0.4167,2418.7,2418.4,2.0045]
[1728168679527,0.4167,2418.7,2418.4,2.33527]
[1728168679528,0.74744,2418.7,2418.4,2.33527]
[1728168679722,0.74744,2418.7,2418.4,2.0045]
[1728168679930,0.4167,2418.7,2418.5,0.53008876]
[1728168680124,0.33075,2418.6,2418.4,2.0045]
[1728168681621,0.4167,2418.7,2418.4,2.0045]
[1728168681816,0.74744,2418.7,2418.4,2.33528]
[1728168682124,0.74744,2418.7,2418.4,2.0045]
[1728168682820,0.72943,2418.8,2418.5,4.41698891]
[1728168683129,0.72943,2418.8,2418.5,4.74774891]
[1728168683828,0.3982,2418.9,2418.7,0.33073]
[1728168684030,1.52069,2419.0,2418.8,0.7973]
[1728168684220,1.19,2419.0,2418.8,0.7973]
[1728168684421,1.19,2419.0,2418.8,1.12802]
[1728168684727,4.38458,2419.1,2418.8,1.12802]
[1728168684728,4.38458,2419.1,2418.8,0.7973]
[1728168684928,4.0539,2419.1,2418.8,2.31801]
[1728168685131,0.75579,2419.1,2418.9,4.75714032]
[1728168685437,1.52067,2419.2,2418.9,4.75714032]
[1728168685625,0.421,2419.3,2419.0,1.19]
[1728168685626,0.4251,2419.3,2419.0,1.19]
[1728168685822,0.33063,2419.5,2419.2,3.2078]
[1728168686024,0.33063,2419.5,2419.3,0.3997]
[1728168686229,0.33063,2419.5,2419.3,0.8201]
[1728168686424,3.6288,2419.6,2419.3,0.8201]
[1728168686726,3.95942,2419.6,2419.3,0.8201]
[1728168688325,1.52063,2419.5,2419.3,0.8201]
[1728168689631,1.19,2419.5,2419.3,0.8201]
[1728168690227,1.19,2419.5,2419.2,3.2078]
[1728168690228,1.19,2419.4,2419.0,0.4036]
[1728168690527,0.33067,2419.2,2418.9,3.5948]
[1728168690731,0.405,2419.1,2418.9,3.2078]
[1728168691026,0.405,2419.1,2419.0,4.61419373]
[1728168691231,0.73568,2419.1,2419.0,4.61419373]
[1728168695325,0.405,2419.1,2419.0,4.61419373]
[1728168698528,0.405,2419.1,2419.0,4.57415388]
[1728168698930,0.74827,2419.2,2419.0,4.57415388]
[1728168700938,0.4176,2419.2,2419.0,4.57415388]
[1728168701139,0.33068,2419.1,2419.0,4.57415388]
[1728168710843,0.4176,2419.2,2418.8,3.6204]
[1728168710844,0.33069,2419.0,2418.8,3.6204]
[1728168712043,0.4176,2419.2,2418.8,3.6204]
[1728168712242,0.33069,2419.1,2418.8,3.95112]
[1728168714350,0.4176,2419.2,2418.8,3.95112]
[1728168714351,0.33069,2419.0,2418.8,3.95112]
[1728168719160,0.33071,2418.9,2418.8,3.2078]
[1728168719458,1.13161,2418.9,2418.8,3.2078]
[1728168720060,0.71931,2418.9,2418.8,3.2078]
[1728168720264,0.71931,2418.9,2418.8,3.6033]
[1728168720965,0.71931,2418.9,2418.8,0.3955]
[1728168721168,0.71931,2418.9,2418.8,3.6033]
[1728168721471,0.3886,2418.9,2418.8,3.6033]
[1728168722568,0.3886,2418.9,2418.8,3.93402]
[1728168724164,0.3886,2418.9,2418.8,0.72622]
[1728168724563,0.3886,2418.9,2418.8,0.3955]
[1728168726259,0.3886,2418.9,2418.8,0.92458162]
[1728168733068,0.3886,2418.9,2418.8,0.3955]
[1728168733281,0.3886,2418.9,2418.8,0.92501522]
[1728168736376,0.3886,2418.9,2418.8,0.92529646]
[1728168736572,0.7887,2418.9,2418.8,0.92529646]
[1728168739677,0.7887,2418.9,2418.8,0.92532015]
[1728168741485,0.7887,2418.9,2418.8,2.00252652]
[1728168741986,1.11941,2418.9,2418.8,0.52982015]
[1728168743690,0.3856,2419.1,2418.8,1.93774652]
[1728168743691,0.33068,2419.1,2418.8,1.93774652]
[1728168743993,1.9847,2419.3,2418.9,0.86053015]
[1728168744192,1.9847,2419.3,2419.0,0.92522015]
[1728168744487,1.9847,2419.3,2419.0,0.3954]
[1728168744488,0.33068,2419.1,2419.0,0.3954]
[1728168744688,0.33068,2419.1,2419.0,0.92516859]
[1728168748987,0.33068,2419.1,2419.0,0.52976859]
[1728168749287,0.33068,2419.1,2418.7,4.70660637]
[1728168749288,0.33072,2418.8,2418.7,4.70660637]
[1728168749591,0.33072,2418.8,2418.7,5.23649184]
[1728168750483,0.4188,2418.9,2418.7,5.23649184]
[1728168750689,0.74952,2418.9,2418.8,0.52988547]
[1728168751280,4.88392,2418.9,2418.8,0.52988547]
[1728168752595,4.88392,2418.9,2418.6,1.07720637]
[1728168752596,0.33073,2418.7,2418.6,1.07720637]
[1728168752888,0.33073,2418.7,2418.6,1.60712567]
[1728168757793,0.33073,2418.7,2418.6,3.16371546]
[1728168759397,0.33073,2418.7,2418.6,3.59091546]
[1728168761198,0.33073,2418.7,2418.6,2.03432567]
[1728168761498,0.33073,2418.7,2418.6,3.59103459]
[1728168762202,0.33073,2418.7,2418.6,2.03432567]
[1728168762387,0.33073,2418.7,2418.6,2.03432622]
[1728168762792,0.33073,2418.7,2418.6,3.59110538]
[1728168763091,0.33073,2418.7,2418.6,2.03432622]
[1728168763608,0.33073,2418.7,2418.6,3.59114553]
[1728168763806,1.52073,2418.7,2418.6,1.60712622]
[1728168764094,1.52073,2418.7,2418.3,3.621]
[1728168764095,0.33078,2418.4,2418.3,4.68840637]
[1728168764299,0.33078,2418.4,2418.3,3.73792715]
[1728168765599,0.33078,2418.4,2418.3,3.2078]
[1728168766003,0.33078,2418.4,2418.3,3.73762298]
[1728168766501,0.33078,2418.4,2418.3,3.2078]
[1728168769397,0.33079,2418.4,2418.2,0.4034]
[1728168769605,0.33079,2418.3,2418.2,0.4034]
[1728168786012,0.33078,2418.4,2418.2,9.17299102]
[1728168786213,0.33078,2418.4,2418.3,0.4227]
[1728168789517,0.33077,2418.5,2418.3,0.4227]
[1728168790016,0.33078,2418.4,2418.3,0.4227]
[1728168790617,0.3854,2418.6,2418.3,0.4227]
[1728168790817,5.63117,2418.7,2418.3,0.4227]
[1728168790818,0.33076,2418.5,2418.3,0.4227]
[1728168792114,0.33076,2418.5,2418.3,3.6305]
[1728168792919,0.33076,2418.5,2418.3,0.4227]
[1728168793313,0.33076,2418.5,2418.3,3.6305]
[1728168794030,1.5965,2418.7,2418.3,3.6305]
[1728168794415,0.33077,2418.5,2418.3,3.6305]
[1728168794916,0.33078,2418.4,2418.3,3.6305]
[1728168795220,0.33078,2418.4,2418.3,3.2078]
[1728168802634,0.33078,2418.4,2418.2,3.6112]
[1728168803137,0.33078,2418.4,2418.2,0.4034]
[1728168803337,0.33078,2418.4,2418.2,3.6112]
[1728168804228,0.33078,2418.4,2418.2,0.4034]
[1728168804737,1.9861,2418.5,2418.2,3.6112]
[1728168804938,0.33079,2418.3,2418.2,3.6112]
[1728168805134,0.33079,2418.3,2418.2,4.14116441]
[1728168807233,0.33079,2418.3,2418.2,3.6112]
[1728168807433,0.33079,2418.4,2418.2,4.14137578]
[1728168807638,0.33079,2418.4,2418.3,0.53017578]
[1728168815349,0.33079,2418.4,2418.3,1.60738215]
[1728168816043,0.33079,2418.4,2418.3,0.53017578]
[1728168816546,1.52079,2418.4,2418.3,0.53017578]
[1728168820148,1.19,2418.4,2418.3,0.53117331]
[1728168820349,1.52078,2418.4,2418.3,0.53117331]
[1728168823355,1.19,2418.4,2418.1,1.49130637]
[1728168823551,0.75019,2418.3,2418.2,0.53111828]
[1728168823746,1.94019,2418.3,2418.2,0.53111828]
[1728168826153,1.6094,2418.3,2418.2,0.53111828]
[1728168833362,1.6094,2418.3,2418.1,2.23380143]
[1728168833655,1.6094,2418.3,2418.1,1.90298143]
[1728168833855,1.6094,2418.3,2418.2,0.53120889]
[1728168836658,1.6094,2418.3,2418.1,2.23380143]
[1728168836856,1.6094,2418.3,2418.2,0.53116927]
[1728168840056,1.6094,2418.3,2418.1,2.23380143]
[1728168840266,1.6094,2418.3,2418.2,0.53126651]
[1728168842159,1.6094,2418.3,2418.1,5.86799143]
[1728168842366,1.6094,2418.3,2418.2,0.53130031]
[1728168842568,1.6094,2418.3,2418.2,0.53126339]
[1728168842768,1.6094,2418.3,2418.2,0.53126353]
[1728168843470,1.6094,2418.3,2418.2,0.86206353]
[1728168843666,1.19,2418.4,2418.2,0.53126353]
[1728168843868,2.338,2418.6,2418.4,0.33077]
[1728168844072,2.338,2418.6,2418.5,0.401]
[1728168844272,6.4724,2418.6,2418.5,1.2316]
[1728168844567,6.4724,2418.6,2418.5,1.76279042]
[1728168844971,5.3244,2418.6,2418.5,1.76279042]
[1728168845671,5.3244,2418.6,2418.5,1.2316]
[1728168846169,5.3244,2418.6,2418.5,1.76278567]
[1728168846368,5.65515,2418.6,2418.5,1.76278567]
[1728168848867,5.65515,2418.6,2418.5,1.2316]
[1728168849271,5.65515,2418.6,2418.5,1.76278056]
[1728168850674,5.65515,2418.6,2418.5,1.2316]
[1728168851068,1.52075,2418.6,2418.5,1.2316]
[1728168851674,1.52075,2418.6,2418.5,1.76275035]
[1728168852171,1.19,2418.6,2418.5,1.76267492]
[1728168852975,1.52075,2418.6,2418.5,1.76267492]
[1728168853283,1.92365,2418.6,2418.5,1.33627492]
[1728168854076,1.92365,2418.6,2418.5,0.53107492]
[1728168854469,6.55419,2418.6,2418.2,1.48089355]
[1728168854674,0.33079,2418.3,2418.2,0.4009]
[1728168854876,0.33079,2418.3,2418.2,0.93200964]
[1728168855275,0.33079,2418.3,2418.2,0.4009]
[1728168855571,0.33079,2418.3,2418.2,0.93200542]
[1728168860772,3.53851,2418.9,2418.3,0.33079]
[1728168860977,2.29591,2418.9,2418.5,3.2078]
[1728168861175,2.29591,2418.9,2418.6,1.26005542]
[1728168861380,2.29591,2418.9,2418.7,0.53110542]
[1728168861582,2.29591,2418.9,2418.7,0.3863]
[1728168862992,1.19,2418.8,2418.7,0.3863]
[1728168863779,1.19,2418.8,2418.7,0.91677384]
[1728168864177,1.19,2418.8,2418.7,0.3863]
[1728168864778,4.03443,2419.4,2418.7,0.3863]
[1728168864975,1.52068,2419.1,2418.8,3.95242]
[1728168865181,1.52068,2419.1,2418.8,3.6217]
[1728168865588,1.19,2418.9,2418.8,3.6217]
[1728168865887,1.19,2418.9,2418.8,4.15186916]
[1728168866088,1.19,2418.9,2418.8,3.6217]
[1728168866891,1.19,2418.9,2418.8,4.15172132]
[1728168867189,1.19,2418.9,2418.8,0.4139]
[1728168867584,1.19,2418.9,2418.7,0.3863]
[1728168867790,1.92782,2418.8,2418.7,0.3863]
[1728168868085,1.92782,2418.8,2418.7,0.91623931]
[1728168868285,1.92782,2418.8,2418.7,0.91625957]
[1728168868589,1.92782,2418.8,2418.7,0.9161917]
[1728168869186,1.92782,2418.8,2418.7,0.3863]
[1728168873792,1.5971,2418.8,2418.7,0.3863]
[1728168877993,1.91642,2418.9,2418.7,0.71703]
[1728168878895,1.5857,2418.9,2418.7,0.71703]
[1728168879497,1.91641,2418.9,2418.7,0.71703]
[1728168880198,1.91641,2418.9,2418.7,3.5941]
[1728168880993,1.91641,2418.9,2418.7,0.3863]
[1728168881191,1.91641,2418.9,2418.7,3.5941]
[1728168881393,1.5857,2418.9,2418.7,3.92483]
[1728168881592,1.19,2419.0,2418.8,0.33072]
[1728168882602,1.52069,2419.0,2418.7,3.5941]
[1728168882903,1.52069,2419.0,2418.7,3.92483]
[1728168883502,1.19,2419.0,2418.8,0.33072]
[1728168887001,1.52069,2419.0,2418.7,3.92482]
[1728168887502,1.19,2419.0,2418.7,3.92482]
[1728168887905,1.19,2419.0,2418.7,0.71702]
[1728168888202,0.33069,2419.1,2418.8,0.33072]
[1728168888503,1.19,2418.9,2418.8,0.33072]
[1728168892201,1.19,2418.9,2418.7,3.92482]
[1728168893005,1.19,2418.9,2418.7,0.71702]
[1728168893209,1.19,2418.9,2418.7,3.92482]
[1728168893616,1.19,2418.9,2418.7,0.71702]
[1728168893908,1.19,2418.9,2418.7,3.92482]
[1728168895516,1.19,2418.9,2418.7,0.71702]
[1728168895722,1.19,2418.9,2418.7,3.92482]
[1728168896315,1.19,2418.9,2418.7,0.71702]
[1728168896720,1.19,2418.9,2418.7,3.92482]
[1728168897320,1.19,2418.9,2418.8,0.33072]
[1728168898513,1.19,2418.9,2418.7,3.92483]
[1728168898724,1.19,2419.1,2418.7,3.5941]
[1728168898917,1.52069,2419.1,2418.8,5.28151989]
[1728168899113,0.4036,2419.2,2419.0,3.2078]
[1728168899425,1.92427,2419.2,2419.1,0.4226]
[1728168899626,1.92427,2419.2,2419.1,0.8125]
[1728168899925,1.5936,2419.2,2419.1,0.8125]
[1728168901725,1.92427,2419.2,2419.1,0.8125]
[1728168910830,1.5936,2419.2,2419.1,0.8125]
[1728168913732,1.92427,2419.2,2419.1,0.8125]
[1728168918334,1.5936,2419.2,2419.1,0.8125]
[1728168924838,1.19,2419.2,2419.1,0.8125]
[1728168926434,1.19,2419.2,2419.1,1.34242817]
[1728168927336,1.19,2419.2,2419.1,0.8125]
[1728168927832,1.19,2419.2,2419.1,1.34255276]
[1728168928238,0.8483,2419.4,2419.1,1.34255276]
[1728168928239,1.17894,2419.4,2419.1,1.34255276]
[1728168928540,1.17894,2419.4,2419.1,0.8125]
[1728168928541,2.36894,2419.4,2419.1,0.8125]
[1728168928842,2.36894,2419.4,2419.1,1.2132]
[1728168929145,2.36894,2419.4,2419.2,0.53000759]
[1728168929442,2.36894,2419.4,2419.1,1.2132]
[1728168929830,2.36894,2419.4,2419.2,0.53003136]
[1728168930047,2.36894,2419.4,2419.1,1.2132]
[1728168930234,2.36894,2419.4,2419.2,0.53003889]
[1728168930432,2.36894,2419.4,2419.1,1.2132]
[1728168930632,2.36894,2419.4,2419.2,0.5299998]
[1728168930836,2.36894,2419.4,2419.1,1.2132]
[1728168931032,2.36894,2419.4,2419.2,0.52998523]
[1728168931232,2.36894,2419.4,2419.1,1.2132]
[1728168931440,2.36894,2419.4,2419.2,0.52996797]
[1728168931640,2.36894,2419.4,2419.1,1.2132]
[1728168931943,2.36894,2419.4,2419.2,0.52992542]
[1728168932149,2.36894,2419.4,2419.1,1.2132]
[1728168932350,2.36894,2419.4,2419.2,0.52985235]
[1728168932547,2.36894,2419.4,2419.2,3.2078]
[1728168933946,2.0383,2419.4,2419.2,3.2078]
[1728168934339,2.0383,2419.4,2419.2,3.53847]
[1728168934640,2.0383,2419.4,2419.2,3.2078]
[1728168935338,2.0383,2419.4,2419.2,3.53846]
[1728168937438,2.0383,2419.4,2419.2,3.2078]
[1728168939445,2.0383,2419.4,2419.1,1.54387]
[1728168939944,2.0383,2419.4,2419.3,3.2078]
[1728168940738,2.0383,2419.4,2419.1,1.54387]
[1728168940943,2.0383,2419.4,2419.2,0.53010075]
[1728168941143,2.0383,2419.4,2419.3,3.7379643]
[1728168941736,2.0383,2419.4,2419.3,3.2078]
[1728168942544,0.8483,2419.4,2419.3,3.2078]
[1728168943445,0.8483,2419.4,2419.3,3.73802611]
[1728168943635,0.8483,2419.4,2419.3,0.53022611]
[1728168943947,0.8483,2419.4,2419.3,3.2078]
[1728168944139,0.8483,2419.4,2419.3,3.73800165]
[1728168945439,1.17894,2419.4,2419.3,3.73800165]
[1728168945846,0.4271,2419.4,2419.3,3.73800165]
[1728168946037,0.8144,2419.7,2419.3,12.41596315]
[1728168946239,0.4118,2419.7,2419.4,1.55754]
[1728168946439,0.4118,2419.7,2419.5,0.53014208]
[1728168946641,0.74241,2419.7,2419.4,2.4169]
[1728168946849,0.74241,2419.7,2419.5,5.07444671]
[1728168947036,0.74241,2419.7,2419.5,4.54442107]
[1728168947753,0.4118,2419.7,2419.5,4.54442107]
[1728168947954,0.33061,2419.6,2419.5,4.54442107]
[1728168948143,0.33061,2419.6,2419.5,5.07438561]
[1728168948448,0.33061,2419.6,2419.5,4.54442107]
[1728168948846,0.33061,2419.6,2419.5,5.07431605]
[1728168949353,5.3228,2419.6,2419.3,4.28779355]
[1728168949643,0.33064,2419.4,2419.3,1.07999355]
[1728168950043,0.33065,2419.3,2419.2,1.61999033]
[1728168950247,1.91415,2419.3,2419.2,1.61999033]
[1728168951954,12.04775,2419.3,2419.2,1.61999033]
[1728168952142,11.7171,2419.3,2419.1,2.15998711]
[1728168952346,11.7171,2419.3,2418.8,0.483]
[1728168952347,4.1336,2419.2,2418.8,0.483]
[1728168952545,0.33073,2418.8,2418.6,3.626]
[1728168952747,1.19,2418.8,2418.6,3.626]
[1728168953055,0.33073,2418.7,2418.5,0.4234]
[1728168953254,0.71963,2418.7,2418.6,0.53028352]
[1728168954555,0.3889,2418.7,2418.6,0.53028352]
[1728168955556,1.52072,2418.9,2418.6,0.53028352]
[1728168955758,1.93932,2418.9,2418.5,0.4234]
[1728168955949,0.33072,2418.8,2418.6,0.53002771]
[1728168956152,0.33072,2418.8,2418.5,0.4234]
[1728168956351,1.93932,2418.9,2418.6,0.53002416]
[1728168956551,1.93932,2418.9,2418.5,0.4234]
[1728168956857,0.33073,2418.8,2418.6,0.52995536]
[1728168957159,0.33073,2418.8,2418.5,0.4234]
[1728168957354,0.33073,2418.8,2418.6,0.52994437]
[1728168957560,0.33073,2418.8,2418.5,0.4234]
[1728168957755,0.33073,2418.8,2418.6,0.52991032]
[1728168957956,0.33073,2418.8,2418.5,0.4234]
[1728168958156,0.33073,2418.8,2418.6,0.52991885]
[1728168958358,0.33073,2418.8,2418.5,0.4234]
[1728168958653,0.33073,2418.8,2418.6,0.52988219]
[1728168958859,0.33073,2418.8,2418.5,0.75416]
[1728168959059,0.33073,2418.8,2418.6,0.52987786]
[1728168959264,0.33073,2418.8,2418.5,0.75416]
[1728168959857,0.33073,2418.8,2418.5,0.4234]
[1728168960061,0.33073,2418.8,2418.6,0.52981444]
[1728168960257,0.33073,2418.8,2418.5,0.4234]
[1728168960458,0.33073,2418.8,2418.6,0.52979449]
[1728168960761,0.33073,2418.8,2418.5,0.4234]
[1728168960964,0.33073,2418.8,2418.6,0.52979292]
[1728168961157,0.33073,2418.8,2418.5,0.4234]
[1728168963759,0.33073,2418.8,2418.5,3.6312]
[1728168964465,0.33073,2418.8,2418.6,4.58805437]
[1728168964660,0.75173,2418.8,2418.5,3.6312]
[1728168965273,0.75173,2418.8,2418.5,0.4234]
[1728168965566,0.75173,2418.8,2418.6,3.2078]
[1728168966158,0.75173,2418.8,2418.7,0.39]
[1728168969762,1.19,2418.9,2418.7,0.39]
[1728168970069,1.52072,2418.9,2418.7,0.8004]
[1728168971958,1.19,2419.0,2418.8,0.33072]
[1728168972159,1.19,2419.0,2418.9,0.4061]
[1728168972562,4.138,2419.4,2418.9,0.73681]
[1728168972863,1.52067,2419.2,2419.0,0.4135]
[1728168973162,1.19,2419.2,2419.0,0.4135]
[1728168973365,1.19,2419.1,2419.0,0.4135]
[1728168973672,1.52068,2419.1,2419.0,0.4135]
[1728168976171,1.19,2419.1,2419.0,0.4135]
[1728168983480,1.52068,2419.1,2419.0,0.4135]
[1728168988375,1.19,2419.1,2419.0,0.4135]
[1728168988972,1.52068,2419.1,2419.0,0.4135]
[1728168993584,1.19,2419.1,2419.0,0.4135]
[1728168993981,1.52068,2419.1,2419.0,0.4135]
[1728168995385,1.52068,2419.1,2419.0,0.94354493]
[1728169003585,1.52068,2419.1,2419.0,0.4135]
[1728169003991,1.52068,2419.1,2419.0,1.47360983]
[1728169007596,1.52068,2419.1,2419.0,1.47360431]
[1728169007802,1.52068,2419.1,2419.0,2.00365178]
[1728169011200,1.52068,2419.1,2419.0,1.47360431]
[1728169011398,1.19,2419.1,2419.0,2.00372136]
[1728169011596,1.19,2419.1,2419.0,2.53384125]
[1728169012903,0.33066,2419.3,2419.0,6.99812125]
[1728169013108,1.52064,2419.4,2419.1,0.95141989]
[1728169013401,1.52064,2419.4,2419.2,0.4047]
[1728169013605,1.19,2419.4,2419.2,0.4047]
[1728169013797,1.52064,2419.4,2419.3,0.4136]
[1728169015597,1.19,2419.4,2419.3,0.4136]
[1728169015794,1.52064,2419.4,2419.3,0.4136]
[1728169026512,0.33065,2419.3,2419.2,0.4047]
[1728169027013,0.33065,2419.3,2419.2,0.7967]
[1728169027208,0.33065,2419.3,2419.2,1.32709107]
[1728169027816,0.33065,2419.3,2419.2,1.32707651]
[1728169030709,0.33065,2419.3,2419.2,0.7967]
[1728169031913,0.33065,2419.3,2419.2,1.3270682]
[1728169032114,1.19,2419.4,2419.2,1.3270682]
[1728169032115,1.52065,2419.4,2419.2,1.3270682]
[1728169032413,1.52065,2419.4,2419.2,0.7967]
[1728169032615,1.19,2419.5,2419.2,0.7967]
[1728169032814,1.19,2419.5,2419.3,0.53029187]
[1728169032815,0.33064,2419.4,2419.3,0.53029187]
[1728169034421,0.33064,2419.4,2419.2,0.7967]
[1728169034618,0.33064,2419.4,2419.3,0.530179]
[1728169034809,0.33064,2419.4,2419.2,0.7967]
[1728169035211,0.33064,2419.4,2419.3,0.53017972]
[1728169035411,0.33064,2419.4,2419.2,0.7967]
[1728169035714,0.33064,2419.4,2419.3,0.53015635]
[1728169036011,0.33064,2419.4,2419.2,0.7967]
[1728169036519,1.19,2419.7,2419.3,0.53012427]
[1728169036722,0.33062,2419.6,2419.4,0.53004304]
[1728169037011,1.52061,2419.7,2419.5,1.3130021]
[1728169037318,1.52061,2419.7,2419.6,0.3895]
[1728169038814,4.3258,2419.9,2419.6,0.3895]
[1728169038815,3.2078,2419.9,2419.6,0.3895]
[1728169039015,4.3978,2419.9,2419.6,0.3895]
[1728169039216,0.33056,2420.0,2419.7,0.52970408]
[1728169039414,1.19,2420.0,2419.6,3.9279]
[1728169039615,1.19,2420.0,2419.7,0.52946314]
[1728169039816,0.33054,2420.2,2419.9,3.2078]
[1728169040114,1.19,2420.2,2420.0,1.2567]
[1728169040311,0.33054,2420.1,2420.0,1.2567]
[1728169040611,1.52054,2420.2,2420.0,1.2567]
[1728169050127,1.19,2420.2,2420.0,1.2567]
[1728169051119,1.52053,2420.2,2420.0,1.2567]
[1728169056330,1.19,2420.2,2420.0,1.2567]
[1728169057426,1.52053,2420.2,2420.0,1.2567]
[1728169058630,3.6001,2420.6,2420.2,0.33052]
[1728169058631,3.53828,2420.6,2420.2,0.33052]
[1728169058928,0.33049,2420.5,2420.3,0.4113]
[1728169059121,0.33049,2420.5,2420.4,0.3872]
[1728169064129,0.3921,2420.7,2420.4,0.3872]
[1728169064334,1.19,2420.5,2420.4,0.7825]
[1728169066029,1.52049,2420.5,2420.4,0.7825]
[1728169068740,0.33049,2420.5,2420.4,0.7825]
[1728169070327,1.52049,2420.5,2420.4,0.7825]
[1728169073941,1.19,2420.5,2420.3,0.4113]
[1728169074128,4.3986,2420.9,2420.1,0.4003]
[1728169074129,0.33053,2420.2,2420.1,0.4003]
[1728169074431,0.33053,2420.2,2419.9,0.3943]
[1728169074432,0.33056,2420.0,2419.9,0.3943]
[1728169074628,1.52056,2420.0,2419.9,0.8105]
[1728169075035,1.52056,2420.0,2419.9,0.4162]
[1728169083835,1.19,2420.0,2419.7,0.4003]
[1728169084035,4.7078,2420.3,2419.7,0.8251]
[1728169084036,0.33058,2419.8,2419.7,0.8251]
[1728169090451,1.6095,2419.9,2419.7,0.8251]
[1728169090452,1.52058,2419.9,2419.7,0.8251]
[1728169090639,1.19,2419.9,2419.7,0.8251]
[1728169090839,0.33058,2419.8,2419.7,0.8251]
[1728169091449,1.52058,2419.9,2419.7,0.8251]
[1728169092148,0.33058,2419.8,2419.7,0.8251]
[1728169101041,0.33058,2419.8,2419.7,0.4003]
[1728169101243,0.75188,2419.8,2419.7,0.4003]
[1728169111655,0.33061,2419.6,2419.5,0.3943]
[1728169112352,1.19,2419.7,2419.4,4.0134]
[1728169112557,1.52063,2419.5,2419.4,4.0134]
[1728169119661,5.65343,2419.5,2419.4,0.4185]
[1728169120168,0.33065,2419.3,2419.2,3.623]
[1728169120464,1.52065,2419.3,2419.2,4.0288]
[1728169121260,1.52065,2419.3,2419.2,0.821]
[1728169121457,1.52065,2419.3,2419.2,4.0288]
[1728169122258,1.52065,2419.3,2419.2,0.821]
[1728169122467,1.19,2419.3,2419.2,4.0288]
[1728169123367,1.19,2419.3,2419.2,0.821]
[1728169123759,1.19,2419.3,2419.2,4.0288]
[1728169124764,1.52065,2419.3,2419.2,0.821]
[1728169124965,1.19,2419.3,2419.2,0.821]
[1728169126769,1.52065,2419.3,2419.2,0.821]
[1728169126972,1.19,2419.3,2419.2,0.821]
[1728169134769,1.19,2419.3,2419.2,0.4058]
[1728169134970,1.52065,2419.3,2419.2,0.4058]
[1728169144180,1.52065,2419.3,2419.2,0.7996]
[1728169157297,1.52065,2419.3,2419.2,1.32915433]
[1728169157803,1.52065,2419.3,2419.2,0.7996]
[1728169158292,1.52065,2419.3,2419.2,1.32915522]
[1728169161201,1.52065,2419.3,2419.2,1.32936442]
[1728169162093,1.52065,2419.3,2419.2,1.32940466]
[1728169166707,1.19,2419.3,2419.2,1.32940466]
[1728169166912,1.22925,2419.6,2419.2,1.32940466]
[1728169166913,1.52064,2419.4,2419.2,1.32940466]
[1728169167207,1.52064,2419.4,2419.3,0.52980466]
[1728169167403,1.19,2419.4,2419.3,0.52980466]
[1728169167612,1.52064,2419.4,2419.3,0.52980466]
[1728169167805,1.52064,2419.4,2419.3,0.52994528]
[1728169168803,1.19,2419.4,2419.3,0.52994528]
[1728169171908,1.52064,2419.4,2419.3,0.52994528]
[1728169172812,1.19,2419.4,2419.3,0.52994528]
[1728169174311,1.52064,2419.4,2419.3,0.52994528]
[1728169174610,1.19,2419.4,2419.3,0.52994528]
[1728169175609,1.52064,2419.4,2419.3,0.52994528]